[Event "MČR juniorů a juniorek v rapid šachu 2023"]
[Site "Czech Republic"]
[Date "2023.09.23"]
[Round "1.15"]
[White "Janouskova, Adela"]
[Black "Steinbauer, Sebastian"]
[Result "0-1"]
[TimeControl "20 min + 5 sec per move"]
[WhiteFideId "23709804"]
[BlackFideId "399272"]
[WhiteElo "1442"]
[BlackElo "1880"]

1. e4 {[%clk 00:20:08]} {[%emt 00:00:01]} e5 {[%clk 00:20:06]} {[%emt
00:00:05]} 2. Nf3 {[%clk 00:20:07]} {[%emt 00:00:05]} Nf6 {[%clk 00:20:10]}
{[%emt 00:00:02]} 3. Nc3 {[%clk 00:19:59]} {[%emt 00:00:12]} Bb4 {[%clk
00:20:14]} {[%emt 00:00:02]} 4. d3 {[%clk 00:19:45]} {[%emt 00:00:19]} d5
{[%clk 00:20:05]} {[%emt 00:00:13]} 5. exd5 {[%clk 00:19:22]} {[%emt 00:00:27]}
Nxd5 {[%clk 00:20:09]} {[%emt 00:00:02]} 6. Bd2 {[%clk 00:19:10]} {[%emt
00:00:16]} O-O {[%clk 00:20:12]} {[%emt 00:00:03]} 7. Nxd5 {[%clk 00:17:50]}
{[%emt 00:01:25]} Bxd2+ {[%clk 00:20:15]} {[%emt 00:00:02]} 8. Qxd2 {[%clk
00:17:53]} {[%emt 00:00:02]} Qxd5 {[%clk 00:20:19]} {[%emt 00:00:01]} 9. Be2
{[%clk 00:17:29]} {[%emt 00:00:29]} Nc6 {[%clk 00:20:22]} {[%emt 00:00:03]} 10.
O-O {[%clk 00:17:15]} {[%emt 00:00:18]} Bg4 {[%clk 00:19:10]} {[%emt 00:01:17]}
11. h3 {[%clk 00:16:06]} {[%emt 00:01:14]} Be6 {[%clk 00:17:12]} {[%emt
00:02:04]} 12. Ng5 {[%clk 00:14:00]} {[%emt 00:02:10]} Nd4 {[%clk 00:17:13]}
{[%emt 00:00:04]} 13. Nxe6 {[%clk 00:13:24]} {[%emt 00:00:41]} Qxe6 {[%clk
00:15:43]} {[%emt 00:01:35]} 14. c3 {[%clk 00:11:38]} {[%emt 00:01:51]} Nxe2+
{[%clk 00:15:45]} {[%emt 00:00:02]} 15. Qxe2 {[%clk 00:11:41]} {[%emt
00:00:03]} Rad8 {[%clk 00:15:12]} {[%emt 00:00:39]} 16. Rfd1 {[%clk 00:10:28]}
{[%emt 00:01:18]} Rfe8 {[%clk 00:15:00]} {[%emt 00:00:16]} 17. Qe4 {[%clk
00:10:04]} {[%emt 00:00:29]} Qb6 {[%clk 00:14:57]} {[%emt 00:00:09]} 18. Rab1
{[%clk 00:09:22]} {[%emt 00:00:46]} g6 {[%clk 00:14:16]} {[%emt 00:00:46]} 19.
Qe3 {[%clk 00:08:20]} {[%emt 00:01:07]} Qa6 {[%clk 00:14:00]} {[%emt 00:00:22]}
20. a3 {[%clk 00:08:13]} {[%emt 00:00:11]} f5 {[%clk 00:12:56]} {[%emt
00:01:08]} 21. Rd2 {[%clk 00:07:36]} {[%emt 00:00:42]} b6 {[%clk 00:12:06]}
{[%emt 00:00:57]} 22. Rbd1 {[%clk 00:07:21]} {[%emt 00:00:18]} Qb7 {[%clk
00:11:16]} {[%emt 00:00:56]} 23. Qf3 {[%clk 00:06:12]} {[%emt 00:01:14]} Qxf3
{[%clk 00:09:58]} {[%emt 00:01:23]} 24. gxf3 {[%clk 00:06:15]} {[%emt
00:00:02]} c5 {[%clk 00:09:40]} {[%emt 00:00:23]} 25. Kg2 {[%clk 00:06:05]}
{[%emt 00:00:15]} Kf7 {[%clk 00:09:44]} 26. Kg3 {[%clk 00:04:46]} {[%emt
00:01:24]} f4+ {[%clk 00:09:26]} {[%emt 00:00:23]} 27. Kg2 {[%clk 00:04:05]}
{[%emt 00:00:45]} Re7 {[%clk 00:09:12]} {[%emt 00:00:20]} 28. d4 {[%clk
00:02:31]} {[%emt 00:01:39]} exd4 {[%clk 00:08:13]} {[%emt 00:01:04]} 29. cxd4
{[%clk 00:02:32]} {[%emt 00:00:04]} Red7 {[%clk 00:08:16]} 30. d5 {[%clk
00:02:31]} {[%emt 00:00:06]} Rd6 {[%clk 00:08:21]} {[%emt 00:00:02]} 31. h4
{[%clk 00:01:45]} {[%emt 00:00:50]} Re8 {[%clk 00:07:55]} {[%emt 00:00:31]} 32.
Kh3 {[%clk 00:01:25]} {[%emt 00:00:25]} Re5 {[%clk 00:07:55]} {[%emt 00:00:05]}
33. Kg4 {[%clk 00:01:12]} {[%emt 00:00:17]} Rf5 {[%clk 00:07:36]} {[%emt
00:00:25]} 34. Rd3 {[%clk 00:00:36]} {[%emt 00:00:41]} h5+ {[%clk 00:06:49]}
{[%emt 00:00:53]} 35. Kh3 {[%clk 00:00:36]} {[%emt 00:00:04]} Re5 {[%clk
00:06:52]} {[%emt 00:00:02]} 36. R3d2 {[%clk 00:00:17]} {[%emt 00:00:24]} Ke7
{[%clk 00:06:39]} {[%emt 00:00:19]} 37. Kg2 {[%clk 00:00:19]} {[%emt 00:00:02]}
Kd7 {[%clk 00:06:43]} {[%emt 00:00:02]} 38. Kf1 {[%clk 00:00:13]} {[%emt
00:00:11]} g5 {[%clk 00:06:45]} {[%emt 00:00:04]} 39. hxg5 {[%clk 00:00:09]}
{[%emt 00:00:08]} Rxg5 {[%clk 00:06:48]} {[%emt 00:00:02]} 40. Ke2 {[%clk
00:00:09]} {[%emt 00:00:05]} Rh6 {[%clk 00:06:46]} {[%emt 00:00:07]} 41. Rh1
{[%clk 00:00:11]} {[%emt 00:00:03]} h4 {[%clk 00:06:42]} {[%emt 00:00:09]} 42.
Rh3 {[%clk 00:00:08]} {[%emt 00:00:08]} Kd6 {[%clk 00:06:46]} 43. Rd1 {[%clk
00:00:08]} {[%emt 00:00:05]} Rxd5 {[%clk 00:06:47]} {[%emt 00:00:04]} 44. Rdh1
{[%clk 00:00:08]} {[%emt 00:00:05]} Rdh5 {[%clk 00:06:47]} {[%emt 00:00:06]} 45.
Kd3 {[%clk 00:00:11]} {[%emt 00:00:01]} Kd5 {[%clk 00:06:51]} 46. R1h2 {[%clk
00:00:13]} {[%emt 00:00:03]} b5 {[%clk 00:06:50]} {[%emt 00:00:06]} 47. Kd2
{[%clk 00:00:16]} {[%emt 00:00:02]} Kc4 {[%clk 00:06:52]} {[%emt 00:00:03]} 48.
Kc2 {[%clk 00:00:19]} {[%emt 00:00:02]} a5 {[%clk 00:06:56]} {[%emt 00:00:02]}
49. Rh1 {[%clk 00:00:22]} b4 {[%clk 00:07:00]} {[%emt 00:00:01]} 50. axb4
{[%clk 00:00:25]} {[%emt 00:00:03]} cxb4 {[%clk 00:06:36]} {[%emt 00:00:29]} 51.
b3+ {[%clk 00:00:12]} {[%emt 00:00:17]} Kb5 {[%clk 00:06:38]} {[%emt 00:00:03]}
52. Ra1 {[%clk 00:00:11]} {[%emt 00:00:06]} Rc5+ {[%clk 00:06:41]} {[%emt
00:00:03]} 53. Kb2 {[%clk 00:00:07]} {[%emt 00:00:08]} Re5 {[%clk 00:06:43]}
{[%emt 00:00:03]} 54. Rc1 {[%clk 00:00:07]} {[%emt 00:00:06]} Re2+ {[%clk
00:06:46]} 55. Rc2 {[%clk 00:00:11]} {[%emt 00:00:01]} Rxc2+ {[%clk 00:06:49]}
{[%emt 00:00:02]} 56. Kxc2 {[%clk 00:00:15]} a4 {[%clk 00:06:53]} 57. Rh1
{[%clk 00:00:13]} {[%emt 00:00:07]} a3 {[%clk 00:06:52]} {[%emt 00:00:07]} 58.
Kb1 {[%clk 00:00:12]} {[%emt 00:00:05]} h3 {[%clk 00:06:56]} 0-1

[Event "MČR juniorů a juniorek v rapid šachu 2023"]
[Site "Czech Republic"]
[Date "2023.09.23"]
[Round "1.16"]
[White "Merinsky, Vaclav"]
[Black "Housa, Jan"]
[Result "1-0"]
[TimeControl "20 min + 5 sec per move"]
[WhiteFideId "390062"]
[BlackFideId "23736356"]
[WhiteElo "1869"]
[BlackElo "1439"]

1. e4 {[%clk 00:20:07]} {[%emt 00:00:02]} c6 {[%clk 00:20:09]} {[%emt
00:00:02]} 2. d4 {[%clk 00:19:05]} {[%emt 00:01:06]} d5 {[%clk 00:20:12]}
{[%emt 00:00:02]} 3. exd5 {[%clk 00:19:08]} {[%emt 00:00:02]} cxd5 {[%clk
00:20:16]} {[%emt 00:00:01]} 4. Nf3 {[%clk 00:18:58]} {[%emt 00:00:15]} Nc6
{[%clk 00:20:19]} {[%emt 00:00:03]} 5. Bf4 {[%clk 00:18:04]} {[%emt 00:00:58]}
Nf6 {[%clk 00:19:58]} {[%emt 00:00:26]} 6. c3 {[%clk 00:17:40]} {[%emt
00:00:24]} Bg4 {[%clk 00:18:59]} {[%emt 00:01:09]} 7. Bd3 {[%clk 00:17:04]}
{[%emt 00:00:41]} e6 {[%clk 00:18:59]} {[%emt 00:00:05]} 8. Nbd2 {[%clk
00:15:57]} {[%emt 00:01:12]} Bd6 {[%clk 00:18:34]} {[%emt 00:00:30]} 9. Bxd6
{[%clk 00:13:31]} {[%emt 00:02:31]} Qxd6 {[%clk 00:18:37]} {[%emt 00:00:02]} 10.
Qb3 {[%clk 00:13:02]} {[%emt 00:00:34]} O-O {[%clk 00:17:52]} {[%emt 00:00:50]}
11. O-O {[%clk 00:12:48]} {[%emt 00:00:19]} a6 {[%clk 00:16:49]} {[%emt
00:01:09]} 12. a4 {[%clk 00:10:45]} {[%emt 00:02:07]} Rfe8 {[%clk 00:14:15]}
{[%emt 00:02:39]} 13. Rfe1 {[%clk 00:10:04]} {[%emt 00:00:45]} e5 {[%clk
00:12:31]} {[%emt 00:01:50]} 14. dxe5 {[%clk 00:07:56]} {[%emt 00:02:12]} Nxe5
{[%clk 00:12:32]} {[%emt 00:00:05]} 15. Nxe5 {[%clk 00:05:48]} {[%emt
00:02:13]} Rxe5 {[%clk 00:12:35]} {[%emt 00:00:02]} 16. Qxb7 {[%clk 00:05:16]}
{[%emt 00:00:37]} Rb8 {[%clk 00:11:13]} {[%emt 00:01:27]} 17. Qxa6 {[%clk
00:05:09]} {[%emt 00:00:12]} Rb6 {[%clk 00:11:16]} {[%emt 00:00:02]} 18. Qa8+
{[%clk 00:04:10]} {[%emt 00:01:03]} Rb8 {[%clk 00:11:20]} {[%emt 00:00:03]} 19.
Qa6 {[%clk 00:04:08]} {[%emt 00:00:04]} Rb6 {[%clk 00:11:23]} {[%emt 00:00:05]}
20. Qa5 {[%clk 00:02:56]} {[%emt 00:01:14]} Rh5 {[%clk 00:09:35]} {[%emt
00:01:56]} 21. g3 {[%clk 00:02:25]} {[%emt 00:00:36]} d4 {[%clk 00:07:41]}
{[%emt 00:01:59]} 22. Qa8+ {[%clk 00:01:59]} {[%emt 00:00:30]} Rb8 {[%clk
00:07:42]} {[%emt 00:00:05]} 23. Nc4 {[%clk 00:01:44]} {[%emt 00:00:20]} Qd8
{[%clk 00:06:22]} {[%emt 00:01:25]} 24. Qc6 {[%clk 00:00:42]} {[%emt 00:01:07]}
Rc8 {[%clk 00:05:38]} {[%emt 00:00:50]} 25. Qb7 {[%clk 00:00:29]} {[%emt
00:00:16]} Rb8 {[%clk 00:05:13]} {[%emt 00:00:31]} 26. Qa7 {[%clk 00:00:27]}
{[%emt 00:00:05]} Ra8 {[%clk 00:05:08]} {[%emt 00:00:12]} 27. Qxd4 {[%clk
00:00:28]} {[%emt 00:00:04]} Rd5 {[%clk 00:05:11]} {[%emt 00:00:02]} 28. Bxh7+
{[%clk 00:00:16]} {[%emt 00:00:17]} Kxh7 {[%clk 00:05:04]} {[%emt 00:00:12]} 29.
Qe3 {[%clk 00:00:16]} {[%emt 00:00:05]} Ra6 {[%clk 00:03:58]} {[%emt 00:01:12]}
30. b4 {[%clk 00:00:13]} {[%emt 00:00:08]} Re6 {[%clk 00:03:44]} {[%emt
00:00:18]} 31. Qc1 {[%clk 00:00:09]} {[%emt 00:00:09]} Ne4 {[%clk 00:03:07]}
{[%emt 00:00:42]} 32. Ne3 {[%clk 00:00:11]} {[%emt 00:00:03]} Rg5 {[%clk
00:02:48]} {[%emt 00:00:24]} 33. Nxg4 {[%clk 00:00:13]} {[%emt 00:00:04]} Rxg4
{[%clk 00:02:51]} {[%emt 00:00:02]} 34. f3 {[%clk 00:00:13]} {[%emt 00:00:04]}
Qb6+ {[%clk 00:02:51]} {[%emt 00:00:06]} 35. Qe3 {[%clk 00:00:11]} {[%emt
00:00:08]} Qc6 {[%clk 00:00:50]} {[%emt 00:02:05]} 36. fxe4 {[%emt 00:00:05]}
Rgxe4 {[%clk 00:00:51]} {[%emt 00:00:03]} 37. Qd3 {[%clk 00:00:15]} {[%emt
00:00:03]} Qb6+ {[%clk 00:00:30]} {[%emt 00:00:25]} 38. Kh1 {[%clk 00:00:17]}
{[%emt 00:00:03]} Qc6 {[%clk 00:00:24]} {[%emt 00:00:11]} 39. Rxe4 {[%clk
00:00:19]} {[%emt 00:00:03]} Rxe4 {[%clk 00:00:27]} {[%emt 00:00:02]} 40. Re1
{[%clk 00:00:22]} {[%emt 00:00:02]} f5 {[%clk 00:00:30]} {[%emt 00:00:02]} 41.
Rxe4 {[%clk 00:00:25]} {[%emt 00:00:02]} fxe4 {[%clk 00:00:33]} {[%emt
00:00:02]} 42. Qe3 {[%clk 00:00:29]} {[%emt 00:00:02]} Qc4 {[%clk 00:00:28]}
{[%emt 00:00:09]} 43. Kg2 {[%clk 00:00:31]} {[%emt 00:00:02]} Qa2+ {[%clk
00:00:31]} {[%emt 00:00:04]} 44. Kh3 {[%clk 00:00:32]} {[%emt 00:00:03]} Qe6+
{[%clk 00:00:32]} {[%emt 00:00:04]} 45. g4 {[%clk 00:00:32]} {[%emt 00:00:05]}
g5 {[%clk 00:00:23]} {[%emt 00:00:14]} 46. a5 {[%clk 00:00:32]} {[%emt
00:00:05]} Qh6+ {[%clk 00:00:26]} {[%emt 00:00:02]} 47. Kg2 {[%clk 00:00:31]}
{[%emt 00:00:05]} Qe6 {[%clk 00:00:27]} {[%emt 00:00:04]} 48. Kf2 {[%clk
00:00:14]} {[%emt 00:00:22]} Qf7+ {[%clk 00:00:24]} {[%emt 00:00:09]} 49. Ke2
{[%clk 00:00:13]} {[%emt 00:00:05]} Qa2+ {[%clk 00:00:18]} {[%emt 00:00:12]} 50.
Qd2 {[%clk 00:00:15]} {[%emt 00:00:02]} Qc4+ {[%clk 00:00:21]} {[%emt
00:00:04]} 51. Ke3 {[%clk 00:00:16]} {[%emt 00:00:03]} Qc7 {[%clk 00:00:08]}
{[%emt 00:00:18]} 52. Kxe4 {[%clk 00:00:14]} {[%emt 00:00:06]} Qe7+ {[%clk
00:00:09]} {[%emt 00:00:05]} 53. Kd3 {[%clk 00:00:13]} {[%emt 00:00:03]} Qc7
{[%clk 00:00:06]} {[%emt 00:00:12]} 54. Kc2 {[%clk 00:00:09]} {[%emt 00:00:08]}
Qe5 {[%clk 00:00:09]} {[%emt 00:00:02]} 55. Qd3+ {[%clk 00:00:12]} {[%emt
00:00:03]} Kg8 {[%clk 00:00:12]} {[%emt 00:00:01]} 56. Kb3 {[%clk 00:00:14]}
{[%emt 00:00:03]} Qxh2 {[%clk 00:00:12]} {[%emt 00:00:05]} 57. Qd5+ {[%clk
00:00:16]} {[%emt 00:00:03]} Kf8 {[%clk 00:00:14]} {[%emt 00:00:03]} 58. Qxg5
{[%clk 00:00:16]} {[%emt 00:00:05]} Qg3 {[%clk 00:00:14]} {[%emt 00:00:05]} 59.
Qf5+ {[%clk 00:00:16]} {[%emt 00:00:04]} Kg8 {[%clk 00:00:16]} {[%emt
00:00:03]} 60. g5 {[%clk 00:00:17]} {[%emt 00:00:05]} Qg1 {[%clk 00:00:11]}
{[%emt 00:00:11]} 61. Qg6+ {[%clk 00:00:18]} {[%emt 00:00:03]} Kh8 {[%clk
00:00:10]} {[%emt 00:00:03]} 62. Qf6+ {[%clk 00:00:20]} {[%emt 00:00:05]} Kg8
{[%clk 00:00:13]} {[%emt 00:00:03]} 63. Qe6+ {[%clk 00:00:23]} {[%emt
00:00:02]} Kh8 {[%clk 00:00:14]} {[%emt 00:00:04]} 64. g6 {[%clk 00:00:23]}
{[%emt 00:00:05]} Qb1+ {[%clk 00:00:16]} {[%emt 00:00:03]} 65. Ka4 {[%clk
00:00:24]} {[%emt 00:00:03]} Qa2+ {[%clk 00:00:08]} {[%emt 00:00:14]} 66. Qxa2
{[%clk 00:00:28]} {[%emt 00:00:02]} 1-0

[Event "MČR juniorů a juniorek v rapid šachu 2023"]
[Site "Czech Republic"]
[Date "2023.09.23"]
[Round "1.17"]
[White "Dudkova, Josefina"]
[Black "Pressler, Tobias"]
[Result "0-1"]
[TimeControl "20 min + 5 sec per move"]
[WhiteFideId "23712350"]
[BlackFideId "23715359"]
[WhiteElo "1437"]
[BlackElo "1859"]

1. d4 {[%clk 00:20:08]} {[%emt 00:00:02]} d5 {[%clk 00:20:01]} {[%emt
00:00:09]} 2. Bf4 {[%clk 00:20:10]} {[%emt 00:00:03]} Nf6 {[%clk 00:19:58]}
{[%emt 00:00:08]} 3. Nf3 {[%clk 00:19:56]} {[%emt 00:00:18]} g6 {[%clk
00:19:49]} {[%emt 00:00:14]} 4. Nc3 {[%clk 00:19:13]} {[%emt 00:00:49]} c6
{[%clk 00:19:36]} {[%emt 00:00:18]} 5. Qd2 {[%clk 00:18:49]} {[%emt 00:00:29]}
Nbd7 {[%clk 00:19:37]} {[%emt 00:00:04]} 6. Ne5 {[%clk 00:17:57]} {[%emt
00:00:56]} Bg7 {[%clk 00:17:19]} {[%emt 00:02:24]} 7. f3 {[%clk 00:16:31]}
{[%emt 00:01:31]} Nh5 {[%clk 00:14:58]} {[%emt 00:02:25]} 8. Nxd7 {[%clk
00:15:18]} {[%emt 00:01:19]} Nxf4 {[%clk 00:13:50]} {[%emt 00:01:13]} 9. Qxf4
{[%clk 00:13:49]} {[%emt 00:01:33]} Bxd7 {[%clk 00:13:49]} {[%emt 00:00:07]} 10.
O-O-O {[%clk 00:12:58]} {[%emt 00:00:55]} O-O {[%clk 00:13:40]} {[%emt
00:00:14]} 11. e4 {[%clk 00:12:44]} {[%emt 00:00:20]} dxe4 {[%clk 00:09:04]}
{[%emt 00:04:42]} 12. Nxe4 {[%clk 00:10:26]} {[%emt 00:02:21]} Bf5 {[%clk
00:08:00]} {[%emt 00:01:09]} 13. Bc4 {[%clk 00:07:40]} {[%emt 00:02:52]} b5
{[%clk 00:07:32]} {[%emt 00:00:33]} 14. Bb3 {[%clk 00:07:32]} {[%emt 00:00:12]}
a5 {[%clk 00:07:00]} {[%emt 00:00:37]} 15. Ng5 {[%clk 00:05:45]} {[%emt
00:01:53]} Bh6 {[%clk 00:06:27]} {[%emt 00:00:38]} 16. g4 {[%clk 00:04:53]}
{[%emt 00:00:57]} e5 {[%clk 00:06:14]} {[%emt 00:00:18]} 17. dxe5 {[%clk
00:01:35]} {[%emt 00:03:23]} Bxg5 {[%clk 00:06:17]} {[%emt 00:00:02]} 18. Rxd8
{[%clk 00:01:31]} {[%emt 00:00:09]} Bxf4+ {[%clk 00:06:19]} {[%emt 00:00:02]}
19. Kb1 {[%clk 00:01:31]} {[%emt 00:00:05]} Rfxd8 {[%clk 00:06:22]} {[%emt
00:00:03]} 20. gxf5 {[%clk 00:01:28]} {[%emt 00:00:08]} a4 {[%emt 00:00:15]}
0-1

[Event "MČR juniorů a juniorek v rapid šachu 2023"]
[Site "Czech Republic"]
[Date "2023.09.23"]
[Round "1.18"]
[White "Simunek, Jakub Simon"]
[Black "Stara, Zuzana"]
[Result "1/2-1/2"]
[TimeControl "20 min + 5 sec per move"]
[WhiteFideId "23709464"]
[BlackFideId "23733543"]
[WhiteElo "1843"]
[BlackElo "1377"]

1. e4 {[%clk 00:20:07]} {[%emt 00:00:03]} c6 {[%clk 00:20:08]} {[%emt
00:00:03]} 2. d4 {[%clk 00:20:10]} {[%emt 00:00:02]} d5 {[%clk 00:20:11]}
{[%emt 00:00:02]} 3. exd5 {[%clk 00:20:14]} {[%emt 00:00:01]} cxd5 {[%clk
00:20:14]} {[%emt 00:00:03]} 4. Bd3 {[%clk 00:20:17]} g6 {[%clk 00:20:13]}
{[%emt 00:00:06]} 5. Nf3 {[%clk 00:20:19]} {[%emt 00:00:03]} Nc6 {[%clk
00:18:54]} {[%emt 00:01:24]} 6. c3 {[%clk 00:20:22]} {[%emt 00:00:02]} Nh6
{[%clk 00:15:06]} {[%emt 00:03:53]} 7. O-O {[%clk 00:20:19]} {[%emt 00:00:08]}
Bf5 {[%clk 00:12:14]} {[%emt 00:02:58]} 8. Re1 {[%clk 00:20:10]} {[%emt
00:00:15]} Bxd3 {[%clk 00:11:59]} {[%emt 00:00:19]} 9. Qxd3 {[%clk 00:20:13]}
{[%emt 00:00:02]} Nf5 {[%clk 00:11:50]} {[%emt 00:00:14]} 10. Bf4 {[%clk
00:18:55]} {[%emt 00:01:23]} Bg7 {[%clk 00:11:26]} {[%emt 00:00:29]} 11. Nbd2
{[%clk 00:17:50]} {[%emt 00:01:10]} O-O {[%clk 00:11:08]} {[%emt 00:00:22]} 12.
Nf1 {[%clk 00:15:35]} {[%emt 00:02:20]} e6 {[%clk 00:08:58]} {[%emt 00:02:16]}
13. Ne3 {[%clk 00:14:22]} {[%emt 00:01:17]} Nd6 {[%clk 00:08:54]} {[%emt
00:00:09]} 14. Ng4 {[%clk 00:11:51]} {[%emt 00:02:36]} Ne4 {[%clk 00:07:42]}
{[%emt 00:01:18]} 15. Nge5 {[%clk 00:09:34]} {[%emt 00:02:23]} Nxe5 {[%clk
00:06:56]} {[%emt 00:00:50]} 16. Nxe5 {[%clk 00:09:08]} {[%emt 00:00:31]} Qh4
{[%clk 00:05:44]} {[%emt 00:01:16]} 17. Qe3 {[%clk 00:08:34]} {[%emt 00:00:41]}
Bxe5 {[%clk 00:02:53]} {[%emt 00:02:56]} 18. Bxe5 {[%clk 00:08:23]} {[%emt
00:00:16]} Qe7 {[%clk 00:02:25]} {[%emt 00:00:32]} 19. f3 {[%clk 00:07:35]}
{[%emt 00:00:53]} Nd6 {[%clk 00:02:06]} {[%emt 00:00:23]} 20. Qf4 {[%clk
00:07:20]} {[%emt 00:00:20]} Nf5 {[%clk 00:01:12]} {[%emt 00:01:00]} 21. Qd2
{[%clk 00:05:14]} {[%emt 00:02:11]} Nd6 {[%clk 00:00:56]} {[%emt 00:00:21]} 22.
b3 {[%clk 00:01:45]} {[%emt 00:03:35]} Rac8 {[%clk 00:00:59]} {[%emt 00:00:02]}
23. Rac1 {[%clk 00:01:36]} {[%emt 00:00:14]} Nf5 {[%clk 00:00:45]} {[%emt
00:00:18]} 24. g4 {[%clk 00:00:59]} {[%emt 00:00:42]} Nh4 {[%clk 00:00:28]}
{[%emt 00:00:22]} 25. Qf2 {[%clk 00:00:52]} {[%emt 00:00:11]} g5 {[%clk
00:00:25]} {[%emt 00:00:09]} 26. Bg3 {[%clk 00:00:26]} {[%emt 00:00:31]} Ng6
{[%clk 00:00:29]} 27. Re3 {[%clk 00:00:22]} {[%emt 00:00:10]} Qf6 {[%clk
00:00:25]} {[%emt 00:00:08]} 28. Be5 {[%clk 00:00:15]} {[%emt 00:00:12]} Nxe5
{[%clk 00:00:25]} {[%emt 00:00:04]} 29. Rxe5 {[%clk 00:00:19]} {[%emt
00:00:02]} Qf4 {[%clk 00:00:27]} {[%emt 00:00:03]} 30. Re3 {[%clk 00:00:12]}
{[%emt 00:00:13]} Rc7 {[%clk 00:00:27]} {[%emt 00:00:04]} 31. Rce1 {[%clk
00:00:11]} {[%emt 00:00:06]} Rfc8 {[%clk 00:00:28]} {[%emt 00:00:04]} 32. Qb2
{[%clk 00:00:10]} {[%emt 00:00:05]} a6 {[%clk 00:00:24]} {[%emt 00:00:10]} 33.
a4 {[%clk 00:00:13]} {[%emt 00:00:02]} a5 {[%clk 00:00:25]} {[%emt 00:00:04]}
34. Kg2 {[%clk 00:00:14]} {[%emt 00:00:04]} Kg7 {[%clk 00:00:21]} {[%emt
00:00:09]} 35. R1e2 {[%clk 00:00:11]} {[%emt 00:00:08]} b6 {[%clk 00:00:23]}
{[%emt 00:00:03]} 36. Qc1 {[%clk 00:00:12]} {[%emt 00:00:04]} Kg8 {[%clk
00:00:17]} {[%emt 00:00:11]} 37. Qe1 {[%clk 00:00:15]} {[%emt 00:00:02]} Kg7
{[%clk 00:00:19]} {[%emt 00:00:04]} 38. Rc2 {[%clk 00:00:17]} {[%emt 00:00:03]}
Kg8 {[%clk 00:00:18]} {[%emt 00:00:06]} 39. Rc1 {[%clk 00:00:16]} {[%emt
00:00:06]} Kg7 {[%clk 00:00:17]} {[%emt 00:00:06]} 40. Qe2 {[%clk 00:00:15]}
{[%emt 00:00:06]} Kg8 {[%clk 00:00:18]} {[%emt 00:00:04]} 41. Qd3 {[%clk
00:00:14]} {[%emt 00:00:06]} Kg7 {[%clk 00:00:16]} {[%emt 00:00:07]} 42. Rc2
{[%clk 00:00:16]} {[%emt 00:00:04]} Kg8 {[%clk 00:00:19]} {[%emt 00:00:01]} 43.
Re5 {[%clk 00:00:17]} {[%emt 00:00:04]} Kg7 {[%clk 00:00:16]} {[%emt 00:00:08]}
44. c4 {[%clk 00:00:18]} {[%emt 00:00:04]} dxc4 {[%clk 00:00:18]} {[%emt
00:00:03]} 45. bxc4 {[%clk 00:00:21]} {[%emt 00:00:02]} Rd8 {[%clk 00:00:16]}
{[%emt 00:00:07]} 46. Rd2 {[%clk 00:00:22]} {[%emt 00:00:04]} Qxe5 {[%clk
00:00:13]} {[%emt 00:00:08]} 47. dxe5 {[%clk 00:00:26]} {[%emt 00:00:02]} Rxd3
48. Rxd3 Rxc4 {[%clk 00:00:21]} 49. Rd6 {[%clk 00:00:25]} {[%emt 00:00:11]}
Rxa4 {[%clk 00:00:18]} {[%emt 00:00:07]} 50. Rxb6 {[%clk 00:00:29]} Ra2+ {[%clk
00:00:22]} 51. Kg3 {[%clk 00:00:31]} {[%emt 00:00:04]} a4 {[%clk 00:00:26]}
{[%emt 00:00:02]} 52. Ra6 {[%clk 00:00:34]} {[%emt 00:00:01]} a3 {[%clk
00:00:30]} 53. Ra7 {[%clk 00:00:31]} {[%emt 00:00:09]} Ra1 {[%clk 00:00:33]} 54.
Ra6 {[%clk 00:00:33]} {[%emt 00:00:03]} a2 {[%clk 00:00:37]} 55. Kg2 {[%clk
00:00:37]} Kg8 {[%clk 00:00:38]} {[%emt 00:00:04]} 56. h3 {[%clk 00:00:37]}
{[%emt 00:00:05]} 1/2-1/2